bitfinex-derivatives/quotes_SOLF0:USTF0_20260116
["timestamp","ask_amount","ask_price","bid_price","bid_amount"]
[1768525385910,10.49330227,142.48,142.38,98.352]
[1768525386214,5.08001444,142.47,142.38,98.352]
[1768525386419,6.3181,142.49,142.41,6.3212]
[1768525386610,10.4924367,142.48,142.41,6.3212]
[1768525386917,5.07964222,142.47,142.41,6.3212]
[1768525387112,7.7181,142.49,142.41,6.3212]
[1768525387306,10.49180483,142.48,142.41,6.3212]
[1768525387506,6.3181,142.49,142.41,6.3212]
[1768525387806,3.75678461,142.47,142.41,6.3212]
[1768525388812,3.75678461,142.47,142.39,6.3219]
[1768525390911,3.75678461,142.47,142.4,6.3216]
[1768525396223,3.75678461,142.47,142.41,6.3212]
[1768525400725,3.75678461,142.46,142.39,6.3218]
[1768525400931,3.75678461,142.46,142.37,98.3581]
[1768525401828,3.75678461,142.46,142.4,6.3217]
[1768525404038,4.02962397,142.45,142.35,13.13341369]
[1768525404329,4.02962397,142.45,142.34,111.51081369]
[1768525404538,4.02962397,142.43,142.34,111.51081369]
[1768525405837,4.02962397,142.43,142.37,6.3231]
[1768525416442,10.35012397,142.43,142.35,6.3236]
[1768525416742,3.79244898,142.42,142.35,6.3236]
[1768525417845,10.11334898,142.42,142.35,6.3236]
[1768525418539,3.79244898,142.41,142.35,6.3236]
[1768525419549,3.79244898,142.41,142.36,6.3235]
[1768525421748,3.79244898,142.45,142.35,98.3706]
[1768525422751,3.79244898,142.45,142.39,6.3222]
[1768525441653,10.11204898,142.45,142.37,6.3227]
[1768525441858,4.01599397,142.44,142.37,6.3227]
[1768525442251,4.01599397,142.44,142.38,6.3225]
[1768525446657,4.01599397,142.43,142.36,6.3232]
[1768525449766,6.22579756,142.43,142.36,6.3232]
[1768525456766,4.01599397,142.43,142.36,6.3232]
[1768525456972,6.22579756,142.43,142.36,6.3232]
[1768525459974,4.01599397,142.43,142.36,6.3232]
[1768525469984,4.05804566,142.4,142.34,6.324]
[1768525473186,10.37994566,142.4,142.33,2.20980359]
[1768525473387,10.37994566,142.4,142.32,6.3249]
[1768525474287,10.37994566,142.4,142.33,6.3249]
[1768525477189,4.05804566,142.39,142.33,6.3249]
[1768525478491,4.05804566,142.39,142.32,6.325]
[1768525482894,4.05804566,142.38,142.32,6.325]
[1768525483094,4.05804566,142.38,142.3,8.53560359]
[1768525484795,4.05804566,142.38,142.3,6.3258]
[1768525486097,4.05804566,142.38,142.31,6.3257]
[1768525490088,10.38074566,142.38,142.31,6.3257]
[1768525490295,4.05804566,142.37,142.31,6.3257]
[1768525491191,4.05804566,142.37,142.29,19.45971369]
[1768525491388,4.05804566,142.37,142.29,6.3263]
[1768525491788,4.05804566,142.37,142.3,6.3261]
[1768525495001,6.49019218,142.33,142.27,1.22291919]
[1768525495295,4.28038859,142.32,142.21,98.4666]
[1768525495492,4.28038859,142.32,142.21,99.68992759]
[1768525496900,4.28038859,142.32,142.24,6.3286]
[1768525498602,4.28038859,142.31,142.22,6.3296]
[1768525500206,4.28038859,142.3,142.22,6.3296]
[1768525501098,6.3268,142.29,142.2,6.3303]
[1768525501306,4.28038859,142.28,142.2,6.3303]
[1768525501600,4.28038859,142.27,142.18,6.3312]
[1768525502898,4.28038859,142.25,142.18,6.3312]
[1768525517013,4.28038859,142.24,142.16,6.3321]
[1768525517714,4.28038859,142.24,142.14,214.63779071]
[1768525517715,4.28038859,142.23,142.14,23.94149071]
[1768525518811,4.28038859,142.22,142.14,23.94149071]
[1768525525025,3.95618276,142.21,142.14,17.60849071]
[1768525527532,4.22846806,142.2,142.14,17.60849071]
[1768525531831,10.55926806,142.2,142.14,17.60849071]
[1768525532733,4.22846806,142.19,142.14,17.60849071]
[1768525537629,10.55966806,142.19,142.14,17.60849071]
[1768525538536,4.22846806,142.17,142.14,17.60849071]
[1768525538733,4.22846806,142.17,142.1,6.3347]
[1768525539131,4.22846806,142.17,142.08,7.5601898]
[1768525539934,4.22846806,142.16,142.05,102.0414781]
[1768525540131,4.22846806,142.16,142.05,98.5812]
[1768525540332,4.22846806,142.16,142.06,1.22470526]
[1768525540741,10.56106806,142.16,142.07,6.3363]
[1768525541038,10.56106806,142.16,142.06,1.22470526]
[1768525541234,4.22846806,142.16,142.08,6.3359]
[1768525542438,10.55986806,142.19,142.07,102.0240781]
[1768525543038,4.22846806,142.18,142.07,102.0240781]
[1768525543744,4.22846806,142.18,142.06,99.79300526]
[1768525543745,4.22846806,142.16,142.06,1.22470526]
[1768525544335,10.56116806,142.16,142.07,6.3363]
[1768525544746,4.22846806,142.15,142.07,6.3363]
[1768525545042,4.22846806,142.11,141.99,98.6214]
[1768525545245,4.22846806,142.11,142.02,98.601]
[1768525545439,3.4602781,142.14,142.02,98.601]
[1768525545440,4.22846806,142.13,142.02,98.601]
[1768525545641,4.22846806,142.13,142.04,6.3376]
[1768525545845,4.22846806,142.15,142.03,102.0526781]
[1768525546149,4.22846806,142.15,142.05,6.3371]
[1768525549346,4.22846806,142.14,142.05,6.3371]
[1768525550249,4.22846806,142.14,142.03,11.02317734]
[1768525551056,4.22846806,142.14,142.03,7.56289924]
[1768525552349,4.22846806,142.14,142.04,6.3376]
[1768525555460,3.99279781,142.13,142.05,6.3371]
[1768525557365,3.99279781,142.13,142.06,6.3365]
[1768525557565,3.99279781,142.16,142.05,100.79783824]
[1768525557758,3.99279781,142.16,142.07,2.21963824]
[1768525558466,3.99279781,142.16,142.08,6.3358]
[1768525559665,3.99279781,142.16,142.09,8.55493824]
[1768525559967,3.99279781,142.18,142.09,100.76933824]
[1768525560169,3.99279781,142.18,142.11,6.3344]
[1768525560366,3.99279781,142.21,142.11,2.21963824]
[1768525560668,3.99279781,142.21,142.13,2.21963824]
[1768525560870,3.99279781,142.23,142.13,2.21963824]
[1768525561470,3.99279781,142.23,142.15,6.3327]
[1768525561657,3.99279781,142.21,142.11,98.5337]
[1768525561864,3.99279781,142.21,142.11,100.75333824]
[1768525562064,3.99279781,142.19,142.11,100.75333824]
[1768525562871,3.99279781,142.19,142.13,6.3336]
[1768525565168,2.21963824,142.21,142.13,6.3336]
[1768525565871,6.21243605,142.21,142.13,6.3336]
[1768525566467,3.99279781,142.21,142.13,6.3336]
[1768525566665,6.21243605,142.21,142.13,6.3336]
[1768525567472,3.99279781,142.23,142.13,98.5237]
[1768525567970,3.99279781,142.23,142.17,6.3316]
[1768525568168,111.0554,142.31,142.13,98.5255]
[1768525568169,3.99279781,142.22,142.13,98.5255]
[1768525569575,3.99279781,142.25,142.17,6.3318]
[1768525569876,6.21243605,142.25,142.17,6.3318]
[1768525570069,3.99279781,142.25,142.16,2.21963824]
[1768525570371,3.99279781,142.25,142.18,98.4909]
[1768525570675,3.99279781,142.25,142.17,98.4934]
[1768525570872,3.99279781,142.25,142.17,100.71303824]
[1768525571878,3.99279781,142.25,142.2,6.3304]
[1768525572275,6.21243605,142.25,142.15,100.72763824]
[1768525572475,3.99279781,142.24,142.15,100.72763824]
[1768525573773,3.99279781,142.24,142.18,6.3312]
[1768525575476,3.99279781,142.24,142.16,6.3323]
[1768525575682,3.99279781,142.22,142.16,6.3323]
[1768525578084,6.21243605,142.25,142.15,2.21963824]
[1768525578287,3.99279781,142.25,142.15,2.21963824]
[1768525579886,3.99279781,142.25,142.18,6.3314]
[1768525581290,3.99279781,142.25,142.19,6.331]
[1768525582491,3.99279781,142.25,142.17,98.498]
[1768525582686,3.99279781,142.25,142.17,100.71763824]
[1768525583287,3.99279781,142.25,142.21,6.3301]
[1768525583787,3.99279781,142.25,142.19,98.4843]
[1768525584886,3.99279781,142.25,142.21,6.3298]
[1768525585088,6.13482747,142.28,142.21,6.3298]
[1768525585583,6.13482747,142.28,142.22,6.3297]
[1768525585888,3.91518923,142.27,142.22,6.3297]
[1768525587288,2.21963824,142.27,142.22,6.3297]
[1768525587592,5.90463525,142.25,142.2,6.3303]
[1768525587785,3.68499701,142.25,142.2,6.3303]
[1768525587988,5.90463525,142.25,142.2,6.3303]
[1768525588391,3.68499701,142.25,142.2,6.3303]
[1768525588585,5.90463525,142.25,142.2,6.3303]
[1768525588786,3.68499701,142.24,142.2,6.3303]
[1768525589696,3.68499701,142.31,142.2,6.3303]
[1768525589895,3.68499701,142.26,142.2,6.3303]
[1768525590286,5.90463525,142.26,142.2,6.3303]
[1768525597896,3.68499701,142.25,142.2,6.3303]
[1768525599099,3.68499701,142.25,142.21,6.3301]
[1768525601306,5.90463525,142.28,142.22,6.3296]
[1768525601896,5.90463525,142.28,142.23,6.3291]
[1768525603006,3.68499701,142.28,142.23,6.3291]
[1768525605808,3.68499701,142.24,142.17,98.4947]
[1768525606200,5.90463525,142.26,142.17,98.4947]
[1768525606405,3.68499701,142.25,142.17,98.4947]
[1768525606808,3.68499701,142.25,142.2,6.3305]
[1768525608611,3.68499701,142.25,142.18,6.3313]
[1768525617016,3.53733679,142.24,142.18,6.3313]
[1768525617225,3.53733679,142.23,142.16,6.3322]
[1768525617410,3.53733679,142.23,142.14,100.73543824]
[1768525617811,3.53733679,142.23,142.14,98.5158]
[1768525618011,3.53733679,142.23,142.15,2.21963824]
[1768525618819,3.53733679,142.23,142.17,6.3318]
[1768525624229,3.53733679,142.27,142.17,6.3318]
[1768525624521,3.53733679,142.25,142.17,6.3318]
[1768525625326,9.86583679,142.25,142.18,6.3315]
[1768525625825,3.53733679,142.25,142.15,101.97215864]
[1768525626324,3.53733679,142.25,142.16,98.5051]
[1768525626824,9.86523679,142.27,142.16,98.5051]
[1768525627026,5.4343708,142.26,142.16,98.5051]
[1768525627219,9.86523679,142.27,142.16,98.5051]
[1768525627424,5.43430799,142.26,142.16,98.5051]
[1768525627627,3.53733679,142.26,142.16,98.5051]
[1768525627825,3.53733679,142.26,142.2,6.3306]
[1768525628723,6.3279,142.27,142.2,6.3306]
[1768525629029,3.53733679,142.28,142.2,6.3306]
[1768525629226,8.98196116,142.27,142.2,6.3306]
[1768525629415,3.53733679,142.27,142.2,6.3306]
[1768525631028,3.53733679,142.27,142.21,6.3301]
[1768525641938,3.53733679,142.27,142.17,101.95885864]
[1768525641939,3.53733679,142.27,142.22,6.3297]
[1768525642234,3.53733679,142.27,142.19,101.94465864]
[1768525642433,3.40351843,142.29,142.19,101.94465864]
[1768525642738,3.40351843,142.29,142.23,6.3293]
[1768525646039,3.40351843,142.29,142.24,6.3288]
[1768525657554,6.3258,142.31,142.24,6.3288]
[1768525657754,9.72813126,142.31,142.24,6.3288]
[1768525658456,9.72813126,142.31,142.25,6.3284]
[1768525658646,3.40233126,142.31,142.25,6.3284]
[1768525659750,3.40233126,142.31,142.22,98.4575]
[1768525660848,3.40233126,142.31,142.25,6.3284]
[1768525661063,3.40233126,142.31,142.22,98.4575]
[1768525662257,3.40233126,142.31,142.26,6.3278]
[1768525674866,3.40233126,142.31,142.24,6.3285]
[1768525677371,3.40233126,142.31,142.25,6.3284]
[1768525683471,3.40233126,142.31,142.2,98.4738]
[1768525683472,3.37924522,142.29,142.2,2.21429158]
[1768525684676,3.37924522,142.29,142.19,98.481]
[1768525684977,3.37924522,142.28,142.22,6.3297]
[1768525687976,3.37924522,142.3,142.23,6.3293]
[1768525689983,3.37924522,142.29,142.23,6.3293]
[1768525691985,9.70594522,142.29,142.23,6.3293]
[1768525693086,3.37924522,142.27,142.17,98.4922]
[1768525693383,3.37924522,142.27,142.18,2.21429158]
[1768525693884,3.37924522,142.27,142.2,6.3305]
[1768525696992,3.37924522,142.27,142.21,6.3302]
[1768525712598,3.47355616,142.25,142.19,6.3308]
[1768525718806,3.47355616,142.24,142.13,98.5238]
[1768525719005,3.47355616,142.22,142.13,98.5238]
[1768525719206,3.47355616,142.22,142.12,2.21429158]
[1768525719414,3.47355616,142.21,142.15,6.3325]
[1768525719906,5.68784774,142.21,142.15,6.3325]
[1768525722010,3.47355616,142.21,142.15,6.3325]
[1768525725512,3.47355616,142.21,142.11,100.75239158]
[1768525726311,3.47355616,142.21,142.15,6.3328]
[1768525728611,9.80415616,142.21,142.13,6.3336]
[1768525728916,12.01844774,142.21,142.13,6.3336]
[1768525729415,9.80415616,142.21,142.13,6.3336]
[1768525730114,9.80415616,142.21,142.14,6.3333]
[1768525733526,3.47355616,142.21,142.14,6.3333]
[1768525737232,3.47355616,142.21,142.15,6.3328]
[1768525740432,2.21429158,142.2,142.13,6.3335]
[1768525740632,3.20893874,142.19,142.13,6.3335]
[1768525740828,5.42323032,142.19,142.13,6.3335]
[1768525741425,3.20893874,142.19,142.13,6.3335]
[1768525751226,3.20893874,142.17,142.11,6.3344]
[1768525754742,6.67469523,142.16,142.09,6.3352]
[1768525754945,3.20893874,142.15,142.09,6.3352]
[1768525755140,3.20893874,142.15,142.03,200.64955649]
[1768525755540,3.20893874,142.15,142.03,197.1838]
[1768525755741,3.20893874,142.15,142.08,6.3359]
[1768525755742,9.54193874,142.15,142.08,6.3359]
[1768525756141,3.20893874,142.14,142.08,6.3359]
[1768525757942,3.20893874,142.14,142.06,6.3365]
[1768525758647,3.20893874,142.13,142.06,6.3365]
[1768525758952,3.20893874,142.13,142.02,98.5981]
[1768525759654,3.20893874,142.13,142.05,6.3372]
[1768525763249,3.30869098,142.16,142.06,98.5735]
[1768525763455,3.30869098,142.16,142.07,98.5654]
[1768525763749,3.30869098,142.2,142.08,3.46575649]
[1768525764456,98.4657,142.22,142.07,98.5654]
[1768525764457,3.30869098,142.22,142.1,102.01095649]
[1768525764652,3.30869098,142.22,142.1,98.5452]
[1768525765858,3.30869098,142.2,142.12,6.3341]
[1768525767271,3.28209535,142.19,142.1,6.3349]
[1768525768764,3.28209535,142.18,142.1,6.3349]
[1768525769657,3.28209535,142.18,142.11,6.3345]
[1768525772264,9.61369535,142.18,142.11,6.3345]
[1768525772464,3.28209535,142.17,142.11,6.3345]
[1768525773067,3.28209535,142.17,142.09,6.3352]
[1768525773260,3.28209535,142.16,142.09,6.3352]
[1768525774058,3.28209535,142.16,142.1,6.3349]
[1768525779561,3.28209535,142.18,142.11,6.3346]
[1768525780364,3.28209535,142.17,142.11,6.3346]
[1768525784464,3.28209535,142.17,142.07,98.5631]
[1768525785166,3.28209535,142.16,142.1,6.335]
[1768525791571,3.28209535,142.16,142.06,98.5735]
[1768525791572,3.33970562,142.15,142.08,6.3357]
[1768525793372,3.33970562,142.14,142.06,6.3366]
[1768525794269,3.33970562,142.14,142.07,6.3363]
[1768525804590,3.33970562,142.14,142.08,6.3359]
[1768525804788,3.33970562,142.16,142.06,98.5737]
[1768525804979,3.33970562,142.16,142.07,2.21970627]
[1768525805882,3.33970562,142.16,142.09,6.3354]
[1768525811984,3.33970562,142.16,142.06,98.5737]
[1768525811985,3.33970562,142.16,142.1,6.335]
[1768525812298,119.577,142.22,142.09,100.77290627]
[1768525812299,3.33970562,142.18,142.09,100.77290627]
[1768525813688,3.33970562,142.18,142.09,98.5532]
[1768525813881,3.33970562,142.18,142.12,6.3341]
[1768525815491,3.33970562,142.18,142.06,98.5737]
[1768525815492,3.33970562,142.16,142.06,98.5737]
[1768525816587,3.33970562,142.14,142.06,98.5737]
[1768525816886,5.55941189,142.16,142.1,6.335]
[1768525818690,3.33970562,142.15,142.1,6.335]
[1768525819390,3.33970562,142.15,142.06,98.5737]
[1768525819391,3.33970562,142.1,142.0,98.6122]
[1768525819693,2.21970627,142.07,141.98,98.6299]
[1768525819995,5.82996892,142.06,141.98,98.6299]
[1768525820297,2.21970627,142.09,142.01,6.3389]
[1768525820492,5.82276311,142.08,142.01,6.3389]
[1768525820688,5.82276311,142.07,142.01,6.3389]
[1768525820886,2.21970627,142.09,142.01,6.3389]
[1768525821088,5.82318448,142.08,142.0,98.6161]
[1768525821293,2.21970627,142.1,142.0,98.6161]
[1768525821591,5.81970438,142.09,142.03,6.338]
[1768525821893,5.56845526,142.11,142.03,6.338]
[1768525822097,5.8197159,142.1,142.03,6.338]
[1768525822396,5.56845526,142.11,142.03,6.338]
[1768525822600,9.16664956,142.1,142.03,6.338]
[1768525822800,9.1664201,142.09,142.03,6.338]
[1768525823087,3.34874899,142.09,142.03,6.338]
[1768525823885,5.56845526,142.09,142.03,6.338]
[1768525824299,3.34874899,142.09,142.03,6.338]
[1768525824495,5.56845526,142.09,142.03,6.338]
[1768525825198,5.56845526,142.09,142.01,6.3389]
[1768525826596,3.30674666,142.08,142.01,6.3389]
[1768525831398,3.30674666,142.08,141.99,8.55960627]
[1768525831597,3.30674666,142.08,141.99,6.3399]
[1768525831784,5.52645293,142.08,141.99,6.3399]
[1768525832887,3.30674666,142.08,141.99,8.55960627]
[1768525836602,3.30674666,142.08,142.0,6.3392]
[1768525837297,3.30674666,142.07,141.98,8.55990627]
[1768525838209,9.64334666,142.07,141.98,8.55990627]
[1768525839209,9.64374666,142.06,141.98,8.55990627]
[1768525840207,9.64374666,142.06,141.98,6.3402]
[1768525840509,9.64424666,142.05,141.97,2.21970627]
[1768525841812,9.64424666,142.05,141.97,8.56050627]
[1768525842215,3.30674666,142.05,141.97,2.21970627]
[1768525843823,3.30674666,142.05,141.98,6.3403]
[1768525844723,9.64414666,142.05,141.98,6.3403]
[1768525846017,3.30674666,142.04,141.96,8.56070627]
[1768525848225,3.30674666,142.04,141.98,6.3404]
[1768525848425,6.3374,142.05,141.98,6.3404]
[1768525853328,3.30674666,142.06,141.99,6.3399]
[1768525853633,6.3367,142.07,141.99,6.3399]
[1768525854526,9.67519681,142.07,141.99,6.3399]
[1768525858231,5.95296801,142.06,141.99,6.3399]
[1768525858438,9.67519681,142.07,141.99,6.3399]
[1768525858636,5.95309251,142.06,141.99,6.3399]
[1768525858828,9.67519681,142.07,141.99,6.3399]
[1768525859024,5.95309251,142.06,141.99,6.3399]
[1768525859229,9.67519681,142.07,141.99,6.3399]
[1768525859428,5.95655599,142.06,141.99,6.3399]
[1768525859630,9.67519681,142.07,141.99,6.3399]
[1768525859831,5.95653041,142.06,141.99,6.3399]
[1768525860128,9.67519681,142.07,141.99,6.3399]
[1768525860329,5.96035216,142.06,141.99,6.3399]
[1768525860537,9.67519681,142.07,141.99,6.3399]
[1768525860738,5.96035393,142.06,141.99,6.3399]
[1768525860941,9.67519681,142.07,141.99,6.3399]
[1768525861239,5.96035039,142.06,141.99,6.3399]
[1768525861444,3.33849681,142.04,141.97,6.3405]
[1768525861942,3.33849681,142.04,141.94,99.88177579]
[1768525861943,3.33849681,142.04,141.95,6.3415]
[1768525862138,3.33849681,142.04,141.94,3.44538206]
[1768525862334,9.30479495,142.03,141.94,3.44538206]
[1768525862531,3.33849681,142.05,141.96,2.21970627]
[1768525862838,3.33849681,142.07,141.99,98.6228]
[1768525863038,3.33849681,142.07,142.0,2.21970627]
[1768525863236,3.33849681,142.1,142.01,98.6066]
[1768525863431,3.33849681,142.1,142.02,2.21970627]
[1768525863741,3.33849681,142.12,142.02,100.81830627]
[1768525864732,3.33849681,142.12,142.04,2.21970627]
[1768525864937,3.33849681,142.12,142.05,6.3371]
[1768525865533,3.33849681,142.12,142.05,98.5808]
[1768525865738,3.33849681,142.16,142.05,98.5808]
[1768525865938,3.33849681,142.14,142.05,98.5808]
[1768525866839,3.33849681,142.14,142.08,6.336]
[1768525871245,3.33849681,142.14,142.09,6.3355]
[1768525874256,3.33849681,142.14,142.07,6.3361]
[1768525877857,3.33849681,142.12,142.05,6.337]
[1768525884559,3.19838521,142.11,142.01,98.6066]
[1768525885759,3.19838521,142.11,142.04,6.3377]
[1768525887665,3.10127852,142.1,142.04,6.3377]
[1768525887861,3.10127852,142.08,141.97,98.6359]
[1768525888550,3.10127852,142.08,142.01,6.339]
[1768525888750,3.10127852,142.08,141.99,98.6207]
[1768525888957,6.56985103,142.11,142.0,98.6154]
[1768525889360,3.10127852,142.1,142.0,98.6154]
[1768525889762,3.10127852,142.1,142.03,6.3381]
[1768525890064,3.10127852,142.1,141.99,98.6207]
[1768525890664,6.3357,142.09,142.02,6.3385]
[1768525891261,9.80327251,142.11,142.03,6.3381]
[1768525891462,9.43597852,142.11,142.03,6.3381]
[1768525891863,9.43597852,142.11,142.04,6.3377]
[1768525891864,3.10127852,142.11,142.04,6.3377]
[1768525897467,3.10127852,142.08,142.02,6.3384]
[1768525899275,3.10127852,142.08,141.98,98.6288]
[1768525900784,3.10127852,142.08,142.01,6.3389]
[1768525900984,3.10127852,142.1,141.99,98.6212]
[1768525901872,3.10127852,142.1,142.02,6.3386]
[1768525902980,9.43647852,142.1,142.02,6.3386]
[1768525903181,3.10127852,142.09,142.02,6.3386]
[1768525910082,3.10127852,142.09,142.03,6.3381]
[1768525910281,6.3352,142.1,142.03,6.3381]
[1768525910484,3.10127852,142.11,142.03,6.3381]
[1768525911879,9.43597852,142.11,142.03,6.3381]
[1768525913883,9.59163094,142.13,142.04,6.3375]
[1768525914089,10.89280138,142.12,142.04,6.3375]
[1768525914280,5.42244652,142.11,142.04,6.3375]
[1768525914585,9.59163094,142.13,142.04,6.3375]
[1768525914788,10.89416377,142.12,142.04,6.3375]
[1768525915083,5.42302733,142.11,142.04,6.3375]
[1768525915286,3.25763094,142.12,142.04,6.3375]
[1768525915490,5.42387647,142.11,142.04,6.3375]
[1768525915679,3.25763094,142.12,142.04,6.3375]
[1768525915875,5.42342747,142.11,142.04,6.3375]
[1768525916079,3.25763094,142.12,142.04,6.3375]
[1768525916286,5.42320547,142.11,142.04,6.3375]
[1768525916487,3.25763094,142.12,142.04,6.3375]
[1768525916687,5.42423274,142.11,142.04,6.3375]
[1768525916886,3.25763094,142.12,142.04,6.3375]
[1768525917087,5.42424745,142.11,142.04,6.3375]
[1768525917287,3.25763094,142.12,142.03,98.5952]
[1768525917680,3.25763094,142.12,142.02,98.6019]
[1768525918583,3.25763094,142.1,142.0,98.6161]
[1768525919776,3.25763094,142.1,142.03,6.3379]
[1768525933606,9.59283094,142.1,142.03,6.3379]
[1768525934308,3.25763094,142.09,142.03,6.3379]
[1768525939407,3.25763094,142.11,142.04,6.3376]
[1768525940109,5.44323569,142.1,142.04,6.3376]
[1768525940407,3.25763094,142.11,142.04,6.3376]
[1768525940812,9.59233094,142.11,142.04,6.3376]
[1768525941014,3.26262166,142.1,142.04,6.3376]
[1768525943011,2.22078896,142.12,142.01,2.22078896]
[1768525943012,3.26262166,142.12,142.03,2.22078896]
[1768525943607,3.26262166,142.14,142.03,100.81298896]
[1768525943808,5.44270931,142.13,142.03,100.81298896]
[1768525944116,3.26262166,142.14,142.05,2.22078896]
[1768525944308,8.70449575,142.13,142.05,2.22078896]
[1768525944509,3.26262166,142.13,142.05,2.22078896]
[1768525944916,3.26262166,142.13,142.06,6.3367]
[1768525952336,3.26262166,142.13,142.07,6.3363]
[1768525968554,3.24024207,142.11,142.01,98.6051]
[1768525969753,3.24024207,142.11,142.04,6.3377]
[1768525971758,3.24024207,142.11,142.05,6.3373]
[1768525972153,3.13056178,142.1,142.05,6.3373]
[1768525972356,3.13056178,142.1,142.01,100.82588896]
[1768525973258,3.13056178,142.1,142.05,6.3373]
[1768525973562,11.68565074,142.12,142.05,6.3373]
[1768525973756,3.13056178,142.11,142.05,6.3373]
[1768525974156,3.13056178,142.11,142.01,100.82588896]
[1768525975760,3.13056178,142.11,142.04,6.3376]
[1768525976059,5.35135074,142.11,142.04,6.3376]
[1768525979452,3.13056178,142.1,142.02,6.3384]
[1768525980554,3.13056178,142.1,142.03,6.3381]
[1768525981758,8.55548896,142.11,142.03,6.3381]
[1768525982256,11.68605074,142.11,142.03,6.3381]
[1768525984358,3.13056178,142.1,142.03,6.3381]
[1768525987457,3.13056178,142.09,142.03,6.3381]
[1768525989567,3.13056178,142.09,141.98,0.43894268]
[1768525989772,3.13056178,142.05,141.98,0.43894268]
[1768525990164,6.60074443,142.08,142.0,3.04073073]
[1768525990363,3.13056178,142.08,142.0,3.04073073]
[1768525991763,3.13056178,142.08,142.01,9.37963073]
[1768525991968,3.13056178,142.08,142.02,3.04073073]
[1768525992171,6.3348,142.11,142.02,3.04073073]
[1768525992172,3.13056178,142.1,142.02,3.04073073]
[1768525992768,3.13056178,142.12,142.04,3.04073073]
[1768525993870,3.13056178,142.12,142.05,3.04073073]
[1768525997372,3.13056178,142.12,142.05,9.37793073]
[1768525999771,6.13412926,142.11,142.05,9.37793073]
[1768525999969,6.13412926,142.1,142.05,9.37793073]
[1768526000168,3.13056178,142.12,142.05,9.37793073]
[1768526000368,6.13438394,142.11,142.05,9.37793073]
[1768526000574,6.13438394,142.1,142.05,9.37793073]
[1768526000774,6.13440139,142.09,142.05,9.37793073]
[1768526000976,3.13056178,142.12,142.05,9.37793073]
[1768526001175,6.13434048,142.11,142.05,9.37793073]
[1768526001468,6.13434048,142.1,142.05,9.37793073]
[1768526001665,3.13056178,142.12,142.05,9.37793073]
[1768526001872,6.13462359,142.11,142.05,9.37793073]
[1768526002072,6.13462359,142.1,142.05,9.37793073]
[1768526002369,2.19e-06,142.09,142.06,9.63751327]
[1768526002577,3.13056178,142.12,142.06,3.30071327]
[1768526003069,3.13056178,142.12,142.07,6.3361]
[1768526003768,3.13056178,142.12,142.06,3.30071327]
[1768526004774,3.13056178,142.12,142.06,9.63751327]
[1768526004978,3.13056178,142.12,142.07,3.30071327]
[1768526005672,3.23559091,142.2,142.11,3.30071327]
[1768526005871,98.4612,142.23,142.11,3.30071327]
[1768526005872,3.23559091,142.18,142.11,3.30071327]
[1768526006071,3.23559091,142.18,142.1,6.335]
[1768526006275,3.23559091,142.18,142.09,3.30071327]
[1768526007975,3.47018265,142.17,142.09,3.30071327]
[1768526008170,3.08774539,142.16,142.09,3.30071327]
[1768526014277,5.94586065,142.15,142.09,3.30071327]
[1768526014479,3.08774539,142.16,142.09,3.30071327]
[1768526014782,5.94586065,142.15,142.09,9.63611327]
[1768526014982,3.08774539,142.16,142.09,9.63611327]
[1768526015183,5.94580167,142.15,142.09,9.63611327]
[1768526015383,3.08774539,142.16,142.09,9.63611327]
[1768526015680,5.94510601,142.15,142.09,9.63611327]
[1768526015982,3.08774539,142.16,142.09,9.63611327]
[1768526016178,5.94510441,142.15,142.09,9.63611327]
[1768526016378,3.08774539,142.16,142.09,9.63611327]
[1768526016586,5.94454502,142.15,142.09,9.63611327]
[1768526016787,3.08774539,142.16,142.09,9.63611327]
[1768526017082,5.94454335,142.15,142.09,9.63611327]
[1768526017280,3.08774539,142.16,142.09,9.63611327]
[1768526017579,5.94398098,142.15,142.09,9.63611327]
[1768526017883,3.08774539,142.16,142.09,9.63611327]
[1768526018080,5.94398258,142.15,142.09,9.63611327]
[1768526018382,3.08774539,142.16,142.09,9.63611327]
[1768526018586,5.94343607,142.15,142.09,9.63611327]
[1768526018779,3.08774539,142.16,142.09,9.63611327]
[1768526019082,5.94343607,142.15,142.09,9.63611327]
[1768526019275,3.08774539,142.16,142.09,9.63611327]
[1768526019478,5.94309076,142.15,142.09,9.63611327]
[1768526019679,3.08774539,142.16,142.09,9.63611327]
[1768526019978,5.94308916,142.15,142.09,9.63611327]
[1768526020182,3.08774539,142.15,142.09,9.63611327]
[1768526022981,6.3329,142.15,142.09,3.30071327]
[1768526023283,9.02970694,142.14,142.09,3.30071327]